Cogmind - Beta 13 @@@ ROGUE MODE // 2024.05.12 @ 23:23:10 Player: Ronin_tempest Result: Self-destructed Performance ------------- Evolutions (2) 1000 Regions Visited (5) 1000 Robots Destroyed (40) 200 Value Destroyed (1225) 1225 Prototype IDs (25) 500 Alien Tech Used (0) 0 Bonus (494) 494 TOTAL SCORE: 4419 Bonus ------- High Alert Combat Kills 89 Follower Combat Kills 105 Aligned with FarCom 300 Cogmind --------- Core Integrity 197/550 Matter 269/300 Energy 100/100 System Corruption 6% Temperature Cool (0) Movement Rolling (110) Ox2 Location -8/Materials Parts ------- > --- POWER (1) -------- (None) > --- PROPULSION (4) --- Wheel > --- UTILITY (4) ------ Improved Heat Sink Large Storage Unit Improved Signal Interpreter > --- WEAPON (2) ------- (None) > --- INVENTORY (15) --- Light Nuclear Core Cesium-ion Thruster Cesium-ion Thruster Flying Fortress v7 Improved Signal Interpreter Small Laser Pulse Rifle Improved Light Cannon Grenade Launcher Mining Laser Plasma Cutter Peak State ------------ > --- POWER ------------ Improved Ion Engine > --- PROPULSION ------- Light Treads Light Treads Light Treads Improved Flight Unit > --- UTILITY ---------- Large Storage Unit Visual Processing Unit Seismic Detector Light Armor Plating > --- WEAPON ----------- Pulse Rifle Heavy Particle Gun > --- INVENTORY -------- Light Nuclear Core Wheel Improved Flight Unit Improved Flight Unit Cesium-ion Thruster Flying Fortress v7 Light Armor Plating Small Laser Grenade Launcher Rocket Launcher Mining Laser Plasma Cutter [Rating: 25] Favorites ----------- Power Improved Ion Engine Engine Improved Ion Engine Power Core Light Nuclear Core Propulsion Light Treads Treads Light Treads Leg Aluminum Leg Wheel Wheel Flight Unit Improved Flight Unit Utility Large Storage Unit Device Seismic Detector Storage Large Storage Unit Processor Visual Processing Unit Protection Light Armor Plating Weapon EM Pulse Gun Energy Gun EM Pulse Gun Ballistic Cannon Improved Light Cannon Launcher Grenade Launcher Special Weapon Plasma Cutter Slashing Weapon Blade Saw Build | -11 -10 -10 -10 -9 -8 ------- Run | Yrd Mat Min Exi Min Mat Slots Evolved 4 | . . . . . 4 Power . | . . . . . . Propulsion 2 | . . . . . 2 Utility 2 | . . . . . 2 Weapon . | . . . . . . Parts Attached 39 | . 7 2 . 1 29 Power 3 | . 1 1 . . 1 Engine 2 | . 1 1 . . . Core 1 | . . . . . 1 Reactor . | . . . . . . Propulsion 10 | . 2 . . . 8 Treads 5 | . 2 . . . 3 Leg . | . . . . . . Wheel 3 | . . . . . 3 Hover . | . . . . . . Flight 2 | . . . . . 2 Utility 9 | . 2 1 . . 6 Device 3 | . 1 . . . 2 Storage 1 | . 1 . . . . Processor 2 | . . . . . 2 Hackware . | . . . . . . Protection 3 | . . 1 . . 2 Artifact . | . . . . . . Weapon 17 | . 2 . . 1 14 Energy Gun 8 | . 1 . . . 7 Energy Cannon . | . . . . . . Ballistic Gun . | . . . . . . Ballistic Cannon 1 | . . . . . 1 Launcher 5 | . 1 . . 1 3 Special Weapon 1 | . . . . . 1 Impact Weapon . | . . . . . . Slashing Weapon 2 | . . . . . 2 Piercing Weapon . | . . . . . . Special Melee Weapon . | . . . . . . Unidentified Prototypes 2 | . . . . . 2 Parts Lost 17 | . . . . . 17 Power 2 | . . . . . 2 Propulsion 7 | . . . . . 7 Utility 4 | . . . . . 4 Weapon 4 | . . . . . 4 Highest Loss Streak 8 | . . . . . 8 To Critical Strikes . | . . . . . . Average Slot Usage (%) 91 | . 95 100 100 100 75 Engine 11 | . 14 14 14 14 6 Treads 23 | . 25 28 28 28 16 Wheel 1 | . . . . . 4 Device 4 | . 10 2 . . 5 Storage 12 | . 14 14 14 14 9 Processor 1 | . . . . . 5 Protection 7 | . . 11 14 14 6 Energy Gun 21 | . 26 28 28 17 12 Launcher 2 | . 1 . . 10 2 Naked Turns . | . . . . . . Heaviest Build 38 | 12 28 34 34 35 38 Greatest Support 80 | 20 40 40 40 40 80 Greatest Overweight (x) 1 | . . . . . 1 Average Overweight (x) . | . . . . . . Largest Inventory Capacity 15 | 8 15 15 15 15 15 Average Capacity 14 | 8 11 15 15 15 15 Most Carried 15 | 6 12 15 15 15 15 Average Carried 12 | 6 7 12 13 15 13 Final Capacity 15 | 8 15 15 15 15 15 Final Carried 15 | 6 12 13 15 15 14 Class Distribution -------------------- 94% | Mutant 5% | Scavenger-Mutant Dominant Class ---------------- Mutant | -10/Materials Mutant | -10/Mines Mutant | -10/Exiles Mutant | -9/Mines Mutant | -8/Materials Resources | -11 -10 -10 -10 -9 -8 ----------- Run | Yrd Mat Min Exi Min Mat Matter Collected 881 | 194 136 20 . 10 521 Remotely . | . . . . . . Salvage Created 1149 | 80 206 160 . . 703 Parts 64 | 7 17 14 . . 26 Haulers Intercepted 1 | . . . . . 1 Recyclers Shooed 2 | . 1 . . . 1 Parts Field Recycled . | . . . . . . Retrieved Matter . | . . . . . . Parts Self-Destructed . | . . . . . . Prevented . | . . . . . . Kills | -11 -10 -10 -10 -9 -8 ------- Run | Yrd Mat Min Exi Min Mat Combat Hostiles Destroyed 31 | . 6 5 . . 20 Guns 13 | . . 4 . . 9 AOE 18 | . 6 1 . . 11 Classes Destroyed 10 | 2 2 1 . . 5 Builder 2 | . . . . . 2 Tunneler 1 | 1 . . . . . Hauler 1 | . . . . . 1 Recycler 3 | 1 2 . . . . Watcher 2 | . 2 . . . . Swarmer 9 | . 6 3 . . . Grunt 11 | . . . . . 11 Brawler 1 | . . . . . 1 Protector 1 | . . . . . 1 Sentry 9 | . . 2 . . 7 Best Kill Streak 7 | 2 7 2 . . 6 Combat Bots Only 5 | . 5 2 . . 5 Max Kills in Single Turn 3 | 1 3 1 . . 2 Gunslinging . | . . . . . . Exploded 2 | . 2 1 . . 2 Melee . | . . . . . . Uniques/NPCs Destroyed . | . . . . . . Combat | -11 -10 -10 -10 -9 -8 -------- Run | Yrd Mat Min Exi Min Mat Hostile Shots Fired 176 | . 19 14 . . 143 Missed 54 | . 9 . . . 45 Damage Taken 2079 | . 140 210 . . 1729 Core 428 | . 24 51 . . 353 Absorbed by Shields . | . . . . . . Regen/Repaired (Parts) 43 | . 43 . . . . Core Remaining (%) 85 | 100 . . . 70 . Volleys Fired 78 | 2 14 7 . . 55 Largest 2 | 2 2 2 . . 2 Hottest 103 | 80 80 80 . . 103 Shots Fired 138 | 4 22 14 . . 98 Gun 103 | 4 16 14 . . 69 Cannon . | . . . . . . Launcher 35 | . 6 . . . 29 Special . | . . . . . . Kinetic . | . . . . . . Thermal 61 | . . . . . 61 Explosive 35 | . 6 . . . 29 Electromagnetic 42 | 4 16 14 . . 8 Robot Hit Streak 14 | 3 6 5 . . 14 Robot Miss Streak 3 | . 3 1 . . 2 Penetration Max . | . . . . . . Secondary Targets . | . . . . . . Shots Hit Robots 93 | 3 12 9 . . 69 Core Hits 82 | 2 13 6 . . 61 Critical Kills . | . . . . . . Critical Parts Destroyed . | . . . . . . Critical Strikes 3 | . . 1 . . 2 Burn 1 | . . . . . 1 Corrupt 1 | . . 1 . . . Sever 1 | . . . . . 1 Melee Attacks 3 | . . . . . 3 Impact . | . . . . . . Slashing 3 | . . . . . 3 Piercing . | . . . . . . Sneak Attacks . | . . . . . . Combat Hostiles . | . . . . . . Follow-up Attacks . | . . . . . . Damage Inflicted 3235 | 66 650 168 . . 2351 Guns 1019 | 25 164 97 . . 733 Cannons . | . . . . . . Explosions 2143 | 41 486 71 . . 1545 Melee 49 | . . . . . 49 Ramming 24 | . . . . . 24 Kinetic . | . . . . . . Thermal 808 | 41 40 71 . . 656 Explosive 1991 | . 446 . . . 1545 Electromagnetic 363 | 25 164 97 . . 77 Impact . | . . . . . . Slashing 49 | . . . . . 49 Piercing . | . . . . . . Highest Corruption 6 | . . . . . 6 Average Corruption 6 | . . . . . 6 Corruption Purged . | . . . . . . Corruption Blocked . | . . . . . . Effects 12 | . . . . . 12 Message Errors 1 | . . . . . 1 Matter Fused 4 | . . . . . 4 Heat Flow Errors 4 | . . . . . 4 Parts Rejected 1 | . . . . . 1 Data Loss (minor) 1 | . . . . . 1 Data Loss (major) 1 | . . . . . 1 Overload Shots . | . . . . . . Overflow Damage 84 | . 76 . . . 8 Projectiles . | . . . . . . Explosions 84 | . 76 . . . 8 Melee . | . . . . . . Knockbacks . | . . . . . . Impact . | . . . . . . Kinetic . | . . . . . . Secondary . | . . . . . . Self-Inflicted Damage 258 | . 36 43 . . 179 Shots 9 | . 1 1 . . 7 Rammed 3 | . . . . . 3 Targets Rammed 3 | . . . . . 3 Kicked . | . . . . . . Crushed . | . . . . . . Highest Temperature 331 | 18 66 102 . . 331 Average Temperature 78 | 12 28 44 . . 91 Received Heat Transfer 828 | . . 36 . . 792 Effects 5 | . . . . . 5 Energy Bleed 1 | . . . . . 1 Interference 3 | . . . . . 3 Matter Decay 1 | . . . . . 1 Siege Activations . | . . . . . . Robots Corrupted . | . . . . . . Combat Hostiles . | . . . . . . Parts Fried 4 | . 2 2 . . . Impact Corruptions . | . . . . . . Robots Melted . | . . . . . . Combat Hostiles . | . . . . . . Parts Melted 1 | . . . . . 1 Heat Transferred 1508 | . 50 50 . . 1408 Parts Sabotaged . | . . . . . . Parts Stolen . | . . . . . . Parts Stripped . | . . . . . . Power Chain Reactions 3 | 1 1 1 . . . Alert | -11 -10 -10 -10 -9 -8 ------- Run | Yrd Mat Min Exi Min Mat Peak Influence 532 | 10 488 174 . 10 532 Initial 114 | . 6 114 . . . Average 187 | 8 265 90 . 4 286 Maximum Alert Level 2 | . 2 . . . 2 Low Security (%) 55 | 100 18 100 . 100 29 Level 1 27 | . 67 . . . 30 Level 2 17 | . 13 . . . 39 Level 3 . | . . . . . . Level 4 . | . . . . . . Level 5 . | . . . . . . High Security . | . . . . . . Max Security . | . . . . . . Squads Dispatched 9 | . 1 . . . 8 Investigation 4 | . 1 . . . 3 Extermination . | . . . . . . Reinforcement 1 | . . . . . 1 Assault 1 | . . . . . 1 Garrison 3 | . . . . . 3 Intercept . | . . . . . . Searches Triggered . | . . . . . . Construction Impeded 1 | . . . . . 1 Haulers Reinforced . | . . . . . . Active Scanning Responses . | . . . . . . Cargo Convoy Interrupts . | . . . . . . Stealth | -11 -10 -10 -10 -9 -8 --------- Run | Yrd Mat Min Exi Min Mat Distress Signals 3 | . 1 . . . 2 Communications Jammed . | . . . . . . Distress Signals . | . . . . . . Times Spotted 50 | . 11 6 . . 33 Peak Tracking Total 5 | . 4 3 . . 5 Tactical Retreats 4 | . 1 1 . . 2 Traps | -11 -10 -10 -10 -9 -8 ------- Run | Yrd Mat Min Exi Min Mat Traps Triggered 2 | . 1 . . . 1 Indirectly . | . . . . . . Trap Hack Attempts . | . . . . . . Triggered . | . . . . . . Disarmed . | . . . . . . Reprogrammed . | . . . . . . Reused . | . . . . . . Traps Extracted . | . . . . . . Installed . | . . . . . . Triggered 1 | . . . . 1 . Machines | -11 -10 -10 -10 -9 -8 ---------- Run | Yrd Mat Min Exi Min Mat Machines Disabled 8 | . 2 . . . 6 Max in Single Turn 2 | . 1 . . . 2 Garrison Access 1 | . . . . . 1 Machines Repaired . | . . . . . . Machines Dismantled 1 | . . . . . 1 Machines Sabotaged . | . . . . . . Overloaded Fab Kills . | . . . . . . Hacking | -11 -10 -10 -10 -9 -8 --------- Run | Yrd Mat Min Exi Min Mat Machines Accessed 8 | . 5 . 1 . 2 Terminals 5 | . 4 . . . 1 Fabricators . | . . . . . . Repair Stations 1 | . 1 . . . . Recycling Units . | . . . . . . Scanalyzers 1 | . . . . . 1 Garrison Access . | . . . . . . Total Hacks 32 | . 17 . 1 . 14 Successful 15 | . 7 . 1 . 7 Failed 16 | . 9 . . . 7 Catastrophic . | . . . . . . Database Lockouts 1 | . 1 . . . . Manual 24 | . 16 . 1 . 7 Terminals 21 | . 14 . . . 7 Fabricators . | . . . . . . Repair Stations 3 | . 3 . . . . Recycling Units . | . . . . . . Scanalyzers 7 | . . . . . 7 Garrison Access . | . . . . . . Terminal Hacks 4 | . 3 . 1 . . Part Schematic 1 | . 1 . . . . Locate Traps 2 | . 2 . . . . Derelict Proto ID Bank 1 | . . . 1 . . Fabricator Hacks . | . . . . . . Repair Station Hacks 2 | . 2 . . . . Scan Component 1 | . 1 . . . . Repair 1 | . 1 . . . . Recycling Unit Hacks . | . . . . . . Scanalyzer 5 | . . . . . 5 Insert Component 3 | . . . . . 3 Analyze 2 | . . . . . 2 Garrison Access Hacks . | . . . . . . Unauthorized Hacks 4 | . 2 . . . 2 Terminals 4 | . 2 . . . 2 Botnet 3 | . 2 . . . 1 Operators 1 | . . . . . 1 Fabricators . | . . . . . . Repair Stations . | . . . . . . Recycling Units . | . . . . . . Scanalyzers . | . . . . . . Garrison Access . | . . . . . . Data Cores Recovered . | . . . . . . Used . | . . . . . . Hacking Detections 6 | . 4 . . . 2 Full Trace Events 3 | . 1 . . . 2 Feedback Events . | . . . . . . Feedback Blocked . | . . . . . . Robot Schematics Acquired . | . . . . . . Robots Built . | . . . . . . Authchips . | . . . . . . Time . | . . . . . . Total Robot Build Rating . | . . . . . . Part Schematics Acquired 3 | . 1 . . . 2 Parts Built . | . . . . . . Authchips . | . . . . . . Time . | . . . . . . Total Part Build Rating . | . . . . . . Parts Repaired 1 | . 1 . . . . Time 26 | . 26 . . . . Parts Recycled . | . . . . . . Recycled Matter . | . . . . . . Retrieved Matter . | . . . . . . Retrieved Components . | . . . . . . Parts Scanalyzed 3 | . . . . . 3 Part Schematics Acquired 2 | . . . . . 2 Parts Damaged . | . . . . . . Bothacking | -11 -10 -10 -10 -9 -8 ------------ Run | Yrd Mat Min Exi Min Mat Used RIF Installer . | . . . . . . Robots Hacked . | . . . . . . Non-combat . | . . . . . . Combat . | . . . . . . Robot Hacks Applied . | . . . . . . Relay Couplers Released 1 | . . . . . 1 Machine Destruction 1 | . . . . . 1 Fabnet Peak Effective % . | . . . . . . Robots Rewired . | . . . . . . Allies Hacked . | . . . . . . Hacks Repelled . | . . . . . . Allies | -11 -10 -10 -10 -9 -8 -------- Run | Yrd Mat Min Exi Min Mat Total Allies 3 | . . . . 3 . Largest Group 3 | . . . . 3 3 Highest-Rated Group 40 | . . . . 40 40 Highest-Rated Ally 16 | . . . . 16 16 Total Orders . | . . . . . . Ally Attacks 30 | . . . . . 30 Total Damage 350 | . . . . . 350 Kills 4 | . . . . . 4 Allies Corrupted . | . . . . . . Allies Melted 1 | . . . . . 1 Intel | -11 -10 -10 -10 -9 -8 ------- Run | Yrd Mat Min Exi Min Mat Robot Analysis Total . | . . . . . . Derelict Logs Recovered 1 | . . 1 . . . Drone Launches . | . . . . . . Drone Recoveries . | . . . . . . Exploration | -11 -10 -10 -10 -9 -8 ------------- Run | Yrd Mat Min Exi Min Mat Turns Passed 3564 | 11 793 822 354 487 1097 Spaces Moved 1944 | 5 430 481 219 298 511 Core . | . . . . . . Treads 1701 | . 376 481 219 298 327 Legs 59 | 5 54 . . . . Wheels 184 | . . . . . 184 Hover . | . . . . . . Flight . | . . . . . . Fastest Speed 80 | 120 120 160 160 160 80 Average Speed 152 | 120 154 160 160 160 137 Slowest Speed 240 | 120 160 160 160 160 240 Overloaded Moves . | . . . . . . Propulsion Burnouts . | . . . . . . Robots Hopped . | . . . . . . Cave-ins Triggered . | . . . . . . Exploration Rate (%) 49 | 2 72 97 43 56 28 Regions Visited 5 Branch Regions 3 Pre-discovered Areas . | . . . . . . Known Exits Taken 1 | . . . 1 . . Unknown Exits Taken 4 | 1 1 1 . 1 . Scrap Searched 2 | . . 1 . 1 . Spaces Dug . | . . . . . . Terrain Destroyed 189 | 3 20 4 . . 162 Melee . | . . . . . . Projectile . | . . . . . . AOE 189 | 3 20 4 . . 162 Terrain Rammed . | . . . . . . Walls Destroyed . | . . . . . . Machines Disabled . | . . . . . . Actions | -11 -10 -10 -10 -9 -8 --------- Run | Yrd Mat Min Exi Min Mat Total 2383 | 6 535 522 225 309 786 Wait 256 | . 64 22 . 9 161 Move 1939 | 4 429 480 218 297 511 Hop . | . . . . . . Pick Up 29 | . 13 5 3 1 7 Fast Attach 17 | . 1 1 . . 15 Attach 6 | . . . . . 6 Detach 5 | . . 1 . . 4 Swap 16 | . 6 1 . 1 8 Drop 26 | . 8 5 4 1 8 Fire 78 | 2 14 7 . . 55 Melee 3 | . . . . . 3 Ram 3 | . . . . . 3 Kick . | . . . . . . Crush . | . . . . . . Escape Stasis . | . . . . . . Rewire . | . . . . . . Trap . | . . . . . . Miscellaneous 5 | . . . . . 5 Route ------- -11/Scrapyard -10/Materials (discovered 4 exits: [*Mat x2] / [*Min] / [*Sub]) -10/Mines (discovered 3 exits: [*Mat x2] / *Exi) -10/Exiles (discovered 2 exits: *Min x2) -9/Mines -8/Materials History --------- Turn | Location | Event 5 | -11/Scrapyard | Discovered new exit (range 2) 12 | -11/Scrapyard | Entered Materials 106 | -10/Materials | Discovered new exit (range 8) 218 | -10/Materials | Central database locked down 280 | -10/Materials | Repaired EM Pulse Gun 310 | -10/Materials | Build established: Mutant 394 | -10/Materials | Discovered new exit (range 14) 512 | -10/Materials | Derelicts attacked the area 627 | -10/Materials | Discovered new exit (range 16) 715 | -10/Materials | Discovered new exit (range 12) 805 | -10/Materials | Entered Mines 812 | -10/Mines | Met a Derelict bent on vengeance 1192 | -10/Mines | Deemed a non-threat by the Exiles lab entrance 1192 | -10/Mines | Discovered new exit (range 5) 1380 | -10/Mines | Discovered new exit (range 16) 1436 | -10/Mines | Discovered new exit (range 15) 1627 | -10/Mines | Entered Exiles 1628 | -10/Exiles | Identified exit to Mines 1666 | -10/Exiles | Met 8R-AWN 1695 | -10/Exiles | Met EX-HEX 1743 | -10/Exiles | Met EX-BIN 1762 | -10/Exiles | Aligned with FarCom system 1763 | -10/Exiles | Given EX-Vault access code 1805 | -10/Exiles | Opened EX-Vault 1820 | -10/Exiles | Found Flying Fortress v7 1858 | -10/Exiles | Warned to stay clear of 0b10 Research branches 1981 | -10/Exiles | Left Exiles lab with Flying Fortress v7 1981 | -10/Exiles | Entered Mines 2114 | -9/Mines | Discovered new exit (range 5) 2195 | -9/Mines | Received a Rocket Launcher from a helpful Derelict 2242 | -9/Mines | Assisted by bots powering up and referring to "LRC-V3" 2468 | -9/Mines | Entered Materials 2468 | -8/Materials | Accompanied by 3 allies 2468 | -8/Materials | Evolved 4 slots: Propulsion x2, Utility x2 3114 | -8/Materials | Lost 4 parts (2n1u1w) 3286 | -8/Materials | Core integrity fell below 50% 3321 | -8/Materials | Lost 8 parts (1p4n3u) 3565 | -8/Materials | Self-destructed Last Messages --------------- 03512_ U-05 Engineer lays Concrete. 03513_ T-07 Excavator is excavating. 03514_ U-05 Engineer lays Concrete. 03515_ System corrupted: Heat flow error (+222). 03515_ K-01 Serf collects debris. 03531_ PIWD5>R IQE,|I%QZFSXX=8UCYX KD|A96 03553_ System corrupted: Blade Saw rejected. 03553_ Acquired Blade Saw. 03557_ G-47 Trooper Aluminum Leg severed. 03558_ Hvy. Particle Gun destroyed. 03559_ Wheel destroyed. 03559_ Critical hit (Burn: +37). 03562_ Blade Saw destroyed. 03563_ Slammed into G-47 Trooper. 03563_ Destabilizing: System interference. 03563_ Imp. Signal Interpreter temporarily disabled. 03563_ Imp. Heat Sink temporarily disabled. 03564_ Slammed into G-47 Trooper. 03564_ Lgt. Nuclear Core destroyed. Map ----- +----------------------------------------------------+ | ??????????????????????????????########???????????? | | ??????????????????????????????# #???????????? | | ########??????????????????????# #????######?? | | #??????????????????????# """ ####? #?? | | """ #??????????????????????# """ !# # #?? | | """ #??????????????????????# """==# # !! #?? | | """ #??????????????????????# + + ! #?? | | #???????????##########?######## # #?? | | "S #???????????# #????????# # #?? | | """ #???????????# """" #????????# #?######?? | | " #???????????# """" ######???# #????????? | | #???????????# """" # ##### #????????? | | #+######???????????# + #????????? | | ##### ##??????# # #????????? | | # #?????# # ## #####????????? | | ############### "T" ## ## #?????????? | | ## # # ## """ ## ## #???????? | | ## # # """ ############ ## #???????? | | ## # # """ #??????????# ## ##???????? | | ?# + # """ #?????????## ## ##????????? | | ?# # / ########### #######?????????? | | ?# # # """ + #???????????????? | | ?# # ##### """ # #???????????????? | | ?# # ## """ ## #####+## #???????????????? | | ## ######## ## # = ######???????????????? | | ?# ^##?????# ##w# g@g #????????????????????? | | ?#^ #??????# ## #! g #????????????????????? | | ?# #??????# ## # ##???????????????????? | | ## #??????######## # #???????????????????? | | #?????????????# # ##???????????????????? | | ###+#####??????????? ########????????????????????? | | #??????????? ?????????????????Y??????????? | | #??????????? ????????????????????????????? | | #??????????? ????????????????????????????? | | = #??????????? ????????????????????????????? | | #??????????? ????????????????????????????? | | """ """ #??????????? ????????????????????????????? | | """ """ #????????????????????????????????????????? | | """ """ #????????????????????????????????????????? | | #########????????????????????????????????????????? | | ?????????????????????????????????????????????????? | | ?????????????????????????????????????????????????? | | ?????????????????????????????????????????????????? | | ?????????????????????????????????????????????????? | | ?????????????????????????????????????????????????? | | ?????????????????????????????????????????????????? | | ?????????????????????????????????????????????????? | | ????????????????????????????????????o????????????? | | ?????????????????????????????????????????????????? | | ?????????????????????????????????????????????????? | +----------------------------------------------------+ Best States ------------- Heat Dissipation 45 Energy Generation 14 Energy Capacity 265 Matter Stores 300 Matter Capacity 300 Sight Range 18 Terrain Scan Density 10 Armor Coverage 300 Evasion (%) 55 Recoil Reduction 4 Item Schematics ----------------- Propulsion Shielding | -10/Materials | Hacked Rocket Launcher | -8/Materials | Scanalyzed Lgt. Armor Plating | -8/Materials | Scanalyzed Robot Schematics ------------------ None Fabricated ------------ Nothing Alien Tech Used ----------------- None Achievements -------------- None Challenges ------------ None Game ------ Seed ContainmentLegCompactor Manual? 1 Play Time 00:32:50 Cumulative 57.4 hours Start 2024.05.12 @ 22:54:02 End 2024.05.12 @ 23:23:10 Sessions 1 Manual Loads 0 Difficulty Rogue Special Mode None Game No. 44 Rogue 44 Adventurer 0 Explorer 0 Win Type - Total 0 Types 0/0/0/0/0/0/0/0/0 Lore% 33 Gallery% 34 Achievement% 33 Wizard Run 0 Options --------- Layout 1 ASCII 0 Keyboard 1 Movement Numpad Keybinds 1 Fullscreen 1 Font 24/Smallcaps Map View 50x35 Zoom Use 0% Tactical HUD 1 Map Filters NONE Filters NONE Steam 1 RUN: 35ce2d2b-0d3f-4072-86af-4e02501c0775